bitfinex-derivatives/quotes_BTCF0:USTF0_20251103
["timestamp","ask_amount","ask_price","bid_price","bid_amount"]
[1762170073284,2.08066617,107750.0,107740.0,0.12989293]
[1762170074074,2.08066617,107750.0,107740.0,0.0968305]
[1762170075479,2.08066617,107750.0,107740.0,0.004]
[1762170080189,2.08066617,107750.0,107740.0,0.096833]
[1762170080490,2.08066617,107750.0,107740.0,0.004]
[1762170082592,2.19439794,107750.0,107740.0,0.004]
[1762170082790,2.08066617,107750.0,107740.0,0.004]
[1762170083486,2.19439794,107750.0,107740.0,0.004]
[1762170084290,2.08066617,107750.0,107740.0,0.004]
[1762170084490,2.19439794,107750.0,107740.0,0.004]
[1762170085482,2.08066617,107750.0,107740.0,0.004]
[1762170085684,2.19439794,107750.0,107740.0,0.004]
[1762170085984,2.08066617,107750.0,107740.0,0.004]
[1762170086892,0.58066617,107750.0,107740.0,0.004]
[1762170091092,0.69439794,107750.0,107740.0,0.004]
[1762170092200,0.102143,107740.0,107730.0,0.00609]
[1762170092382,1.01052654,107740.0,107730.0,0.00609]
[1762170093488,1.01052654,107740.0,107730.0,0.00909]
[1762170094090,1.01052654,107740.0,107730.0,0.01409]
[1762170094689,1.01052654,107740.0,107730.0,0.1069317]
[1762170096193,1.08504668,107740.0,107730.0,0.1069317]
[1762170098588,1.08504668,107740.0,107730.0,0.01409]
[1762170099195,1.26076815,107740.0,107730.0,0.01409]
[1762170099504,1.10656815,107740.0,107730.0,0.1069316]
[1762170099997,1.10656812,107740.0,107730.0,0.1069316]
[1762170101492,0.45684158,107740.0,107730.0,0.1199416]
[1762170101799,0.77700158,107740.0,107730.0,0.1199416]
[1762170101984,0.89073335,107740.0,107730.0,0.1199416]
[1762170103500,0.77700158,107740.0,107730.0,0.1199416]
[1762170103693,0.89073335,107740.0,107730.0,0.1199416]
[1762170104600,0.52993335,107740.0,107730.0,0.1199416]
[1762170105001,0.98356635,107740.0,107730.0,0.1199416]
[1762170106799,0.89073335,107740.0,107730.0,0.1199416]
[1762170106999,0.89075488,107740.0,107730.0,0.1199416]
[1762170107501,0.98358788,107740.0,107730.0,0.1199416]
[1762170108296,0.99676788,107740.0,107730.0,0.16943386]
[1762170109610,0.92224774,107740.0,107730.0,0.16943386]
[1762170110592,0.86182727,107740.0,107730.0,0.16943386]
[1762170110792,0.97555904,107740.0,107730.0,0.16943386]
[1762170111494,0.97555904,107740.0,107730.0,0.15642386]
[1762170111897,0.97555904,107740.0,107730.0,0.17893386]
[1762170111898,1.11083702,107740.0,107730.0,0.17893386]
[1762170112096,1.11083702,107740.0,107730.0,0.15642386]
[1762170112398,1.11083702,107740.0,107730.0,0.17893386]
[1762170112596,1.11083702,107740.0,107730.0,0.20184386]
[1762170114408,1.11083702,107740.0,107730.0,0.15642386]
[1762170114607,1.11083702,107740.0,107730.0,0.20184386]
[1762170119806,1.02766145,107740.0,107730.0,0.20184386]
[1762170120807,0.93482845,107740.0,107730.0,0.20184386]
[1762170121003,0.90010224,107740.0,107730.0,0.21540386]
[1762170121395,0.04309,107740.0,107730.0,0.57620386]
[1762170121601,0.14428797,107750.0,107740.0,0.1493829]
[1762170121804,0.14428797,107750.0,107740.0,0.55990149]
[1762170122403,0.04309,107750.0,107740.0,0.55990149]
[1762170122604,0.14428797,107750.0,107740.0,0.57638449]
[1762170123006,0.14428797,107750.0,107740.0,0.57738449]
[1762170123711,0.11072063,107760.0,107740.0,0.57838449]
[1762170124013,0.15381063,107760.0,107750.0,0.55983995]
[1762170124309,0.15381063,107760.0,107750.0,0.55980863]
[1762170125402,0.15481063,107760.0,107750.0,0.55980863]
[1762170126208,0.05361266,107760.0,107750.0,0.55980863]
[1762170126404,0.01052266,107760.0,107750.0,0.55980863]
[1762170126798,0.01052266,107760.0,107750.0,0.87992863]
[1762170126997,0.01052266,107760.0,107750.0,0.8302943]
[1762170127218,0.01252266,107760.0,107750.0,0.87987424]
[1762170127510,0.01252266,107760.0,107750.0,0.89649589]
[1762170128301,0.05461266,107760.0,107750.0,0.87987179]
[1762170128503,0.05461266,107760.0,107750.0,0.88087179]
[1762170129213,0.05261266,107760.0,107750.0,0.88187179]
[1762170129508,0.15381063,107760.0,107750.0,0.88187179]
[1762170130108,0.05261266,107760.0,107750.0,0.88187179]
[1762170131913,0.00952266,107760.0,107750.0,0.88187179]
[1762170132115,0.14428797,107770.0,107760.0,0.1493657]
[1762170132302,0.14428797,107770.0,107760.0,0.18239279]
[1762170132508,0.82516797,107780.0,107770.0,0.1493571]
[1762170132708,0.55716647,107780.0,107770.0,0.1493571]
[1762170132911,0.46436797,107780.0,107770.0,0.1493571]
[1762170133914,0.55716647,107780.0,107770.0,0.1493571]
[1762170134116,0.55916647,107780.0,107770.0,0.1493571]
[1762170134718,0.56868926,107780.0,107770.0,0.1493571]
[1762170134910,0.24860926,107780.0,107770.0,0.1493571]
[1762170135101,0.24660926,107780.0,107770.0,0.1493571]
[1762170135307,0.24760926,107780.0,107770.0,0.1493571]
[1762170136116,0.25260926,107780.0,107770.0,0.1493571]
[1762170137123,0.24960926,107780.0,107770.0,0.1493571]
[1762170137415,0.15681076,107780.0,107770.0,0.1493571]
[1762170139419,0.26320926,107780.0,107770.0,0.1357971]
[1762170140411,0.24960926,107780.0,107770.0,0.1493571]
[1762170140916,0.15681076,107780.0,107770.0,0.1493571]
[1762170143223,0.15681076,107780.0,107770.0,0.5101571]
[1762170143424,0.15681076,107780.0,107770.0,0.54318419]
[1762170147119,0.003,107780.0,107770.0,0.59276168]
[1762170147820,0.003,107780.0,107770.0,0.89289256]
[1762170148024,0.00908403,107790.0,107780.0,0.1494085]
[1762170148326,0.00908403,107790.0,107780.0,0.86319471]
[1762170148824,0.60070377,107810.0,107800.0,0.1492713]
[1762170149923,0.6098929,107810.0,107800.0,0.1492713]
[1762170150225,0.5171171,107810.0,107800.0,0.1492713]
[1762170150421,0.5221171,107810.0,107800.0,0.1492713]
[1762170151017,0.6148898,107810.0,107800.0,0.1492713]
[1762170152024,0.6158898,107810.0,107800.0,0.1492713]
[1762170152624,0.5231171,107810.0,107800.0,0.1492713]
[1762170153322,0.1623171,107810.0,107800.0,0.4692313]
[1762170153923,0.06111913,107810.0,107800.0,0.4692313]
[1762170154124,0.1623171,107810.0,107800.0,0.4692313]
[1762170157822,0.2550899,107810.0,107800.0,0.4692313]
[1762170158929,0.1623171,107810.0,107800.0,0.4692313]
[1762170159319,0.1623171,107810.0,107800.0,0.8300313]
[1762170161228,0.2550898,107810.0,107800.0,0.4692313]
[1762170163126,0.1623171,107810.0,107800.0,0.4692313]
[1762170164132,0.1623171,107810.0,107800.0,0.1492713]
[1762170165233,0.2550898,107810.0,107800.0,0.1492713]
[1762170165928,0.6292298,107810.0,107800.0,0.04385]
[1762170167135,0.6292298,107810.0,107800.0,0.1366313]
[1762170168036,0.52803183,107810.0,107800.0,0.1366313]
[1762170168236,0.6292298,107810.0,107800.0,0.1366313]
[1762170168435,0.2684298,107810.0,107800.0,0.1366313]
[1762170168639,0.6292298,107810.0,107800.0,0.1366313]
[1762170172338,0.2684298,107810.0,107800.0,0.16961751]
[1762170172537,0.1623171,107810.0,107800.0,0.18237751]
[1762170172841,0.4821971,107810.0,107800.0,0.18237751]
[1762170175237,0.4821971,107810.0,107800.0,0.23187696]
[1762170176842,0.1623171,107810.0,107800.0,0.23187696]
[1762170177147,0.4821971,107810.0,107800.0,0.19889075]
[1762170177637,0.4821971,107810.0,107800.0,0.55969075]
[1762170177832,0.1410971,107810.0,107800.0,0.55969075]
[1762170178138,0.06294913,107810.0,107800.0,0.55969075]
[1762170179045,0.15572183,107810.0,107800.0,0.55969075]
[1762170179236,0.2569198,107810.0,107800.0,0.55969075]
[1762170180344,0.26940494,107810.0,107800.0,0.55969075]
[1762170181346,0.27733494,107810.0,107800.0,0.54693075]
[1762170181537,0.27733494,107810.0,107800.0,0.18613075]
[1762170182641,0.27733494,107810.0,107800.0,0.19884075]
[1762170183340,0.27733494,107810.0,107800.0,0.18613075]
[1762170184248,0.27233494,107810.0,107800.0,0.18813075]
[1762170185043,0.27233494,107810.0,107800.0,0.18613075]
[1762170185243,0.27333494,107810.0,107800.0,0.18613075]
[1762170185747,0.63413494,107810.0,107800.0,0.09334945]
[1762170185951,0.1518785,107780.0,107770.0,0.1502439]
[1762170186244,0.49276311,107780.0,107770.0,0.1502439]
[1762170186438,0.58556161,107780.0,107770.0,0.1502439]
[1762170187141,0.58556161,107780.0,107770.0,0.1542439]
[1762170188040,0.58556161,107780.0,107770.0,0.1622439]
[1762170188245,0.94636161,107780.0,107770.0,0.05588]
[1762170188944,0.94636161,107780.0,107770.0,0.012]
[1762170189152,0.94636161,107780.0,107770.0,0.1018071]
[1762170189348,0.94636161,107780.0,107770.0,0.1456871]
[1762170189750,0.94636161,107780.0,107770.0,0.1446871]
[1762170190848,0.94736161,107780.0,107770.0,0.1446871]
[1762170191252,0.85456311,107780.0,107770.0,0.1446871]
[1762170191454,0.85456311,107780.0,107770.0,0.1396871]
[1762170191655,0.94736161,107780.0,107770.0,0.1396871]
[1762170192149,0.94736161,107780.0,107770.0,0.1366871]
[1762170192349,0.95036161,107780.0,107770.0,0.1366871]
[1762170192557,0.94936161,107780.0,107770.0,0.1366871]
[1762170193255,0.94636161,107780.0,107770.0,0.1366871]
[1762170193453,0.85356311,107780.0,107770.0,0.1366871]
[1762170193657,0.15949311,107780.0,107770.0,0.5101971]
[1762170195452,0.04581,107780.0,107770.0,0.62388021]
[1762170195757,0.13644311,107780.0,107770.0,0.5111971]
[1762170195952,0.13644311,107780.0,107770.0,0.62488021]
[1762170196149,0.13644311,107780.0,107770.0,0.94492021]
[1762170196563,0.13644311,107780.0,107770.0,0.94792021]
[1762170196753,0.15949311,107800.0,107790.0,0.1493799]
[1762170197855,0.25227441,107800.0,107790.0,0.1493799]
[1762170198451,0.15949311,107800.0,107790.0,0.1493799]
[1762170198646,0.16349311,107800.0,107790.0,0.1493799]
[1762170199557,0.16049311,107800.0,107790.0,0.1523799]
[1762170199753,0.15949311,107800.0,107790.0,0.1533799]
[1762170200245,0.15949311,107800.0,107790.0,0.1503799]
[1762170200451,0.15949311,107800.0,107790.0,0.1533799]
[1762170201165,0.15949311,107800.0,107790.0,0.5141799]
[1762170204152,0.78608983,107810.0,107790.0,0.5141799]
[1762170204348,0.75239673,107810.0,107800.0,0.1493711]
[1762170205461,0.95885234,107810.0,107800.0,0.1493711]
[1762170207267,0.95885234,107810.0,107800.0,0.1366611]
[1762170214879,0.95885234,107810.0,107800.0,0.04388]
[1762170215064,0.1467711,107800.0,107790.0,0.1157499]
[1762170215375,0.73493732,107800.0,107790.0,0.0927899]
[1762170215766,0.73493732,107800.0,107790.0,0.1375399]
[1762170216766,0.73493732,107800.0,107790.0,0.1157499]
[1762170217776,0.5075711,107800.0,107790.0,0.1375399]
[1762170217976,0.52847311,107800.0,107790.0,0.1375399]
[1762170219072,0.58057431,107800.0,107790.0,0.1375399]
[1762170219376,0.58057431,107800.0,107790.0,0.1909299]
[1762170219778,0.37411,107800.0,107790.0,0.2035499]
[1762170220080,0.16767311,107800.0,107790.0,0.5643499]
[1762170220378,0.48779311,107800.0,107790.0,0.2035499]
[1762170220582,0.47959311,107800.0,107790.0,0.2005499]
[1762170221076,0.47959311,107800.0,107790.0,0.5613499]
[1762170221279,0.47959311,107800.0,107790.0,0.5603499]
[1762170221770,0.47955311,107800.0,107790.0,0.5603499]
[1762170221970,0.57233431,107800.0,107790.0,0.1995499]
[1762170222171,0.57233431,107800.0,107790.0,0.2005499]
[1762170222380,0.47955311,107800.0,107790.0,0.2035499]
[1762170223377,0.47955311,107800.0,107790.0,0.1541599]
[1762170223777,0.47955311,107800.0,107790.0,0.5149599]
[1762170223778,0.36587,107800.0,107790.0,0.5149599]
[1762170224080,0.47955311,107800.0,107790.0,0.5149599]
[1762170224481,0.47955311,107800.0,107790.0,0.1541599]
[1762170225272,0.47955311,107800.0,107790.0,0.5149599]
[1762170225474,0.15947311,107800.0,107790.0,0.5149599]
[1762170227279,0.15947311,107800.0,107790.0,0.1541599]
[1762170227472,0.15947311,107800.0,107790.0,0.5149599]
[1762170229373,0.15947311,107800.0,107790.0,0.8349599]
[1762170231681,0.15947311,107800.0,107790.0,0.4741599]
[1762170231881,0.15947311,107800.0,107790.0,0.8349599]
[1762170234976,0.04579,107800.0,107790.0,0.8349599]
[1762170235177,0.15947311,107800.0,107790.0,0.8349599]
[1762170236379,0.15947311,107800.0,107790.0,0.90111868]
[1762170237984,0.15947311,107800.0,107790.0,0.89911868]
[1762170238179,0.15947311,107800.0,107790.0,0.90211868]
[1762170238387,0.15947311,107800.0,107790.0,0.88547264]
[1762170240274,0.03557673,107810.0,107800.0,0.02153]
[1762170240577,0.003,107810.0,107800.0,0.55989394]
[1762170240990,0.10403804,107810.0,107800.0,0.55989394]
[1762170241480,0.10403804,107810.0,107800.0,0.56089394]
[1762170241881,0.003,107810.0,107800.0,0.56089394]
[1762170242082,0.003,107810.0,107800.0,0.56189394]
[1762170242274,0.003,107810.0,107800.0,0.5123812]
[1762170242480,0.003,107810.0,107800.0,0.57853998]
[1762170242888,0.003,107810.0,107800.0,0.58153998]
[1762170243082,0.003,107810.0,107800.0,0.68257802]
[1762170243389,0.46586804,107830.0,107820.0,0.149204]
[1762170243683,0.46586804,107830.0,107820.0,0.469124]
[1762170243987,0.46586804,107830.0,107820.0,0.51855366]
[1762170244180,0.46586804,107830.0,107820.0,0.469124]
[1762170244581,0.46786804,107830.0,107820.0,0.469124]
[1762170244979,0.14794804,107830.0,107820.0,0.469124]
[1762170245178,0.15745067,107830.0,107820.0,0.87935366]
[1762170246291,0.15745067,107830.0,107820.0,0.829924]
[1762170246591,0.05641263,107830.0,107820.0,0.829924]
[1762170246984,0.15745067,107830.0,107820.0,0.829924]
[1762170247585,0.14794804,107830.0,107820.0,0.829924]
[1762170248492,0.04691,107830.0,107820.0,0.829924]
[1762170248697,0.14794804,107830.0,107820.0,0.829924]
[1762170248987,0.15731597,107830.0,107820.0,0.829924]
[1762170249193,0.15731597,107830.0,107820.0,0.469124]
[1762170249491,0.62087137,107830.0,107820.0,0.02153]
[1762170249794,0.151244,107820.0,107810.0,0.1367378]
[1762170249978,0.57232204,107820.0,107810.0,0.04397]
[1762170250184,0.93312204,107820.0,107810.0,0.04397]
[1762170250891,0.93312204,107820.0,107810.0,0.1377426]
[1762170251787,0.93312204,107820.0,107810.0,0.1387426]
[1762170252587,0.93312204,107820.0,107810.0,0.1377426]
[1762170252790,0.93512204,107820.0,107810.0,0.1377426]
[1762170253102,0.93512204,107820.0,107810.0,0.1367426]
[1762170254187,0.93512204,107820.0,107810.0,0.1367427]
[1762170255599,0.84235804,107820.0,107810.0,0.1495727]
[1762170255784,0.36695,107820.0,107810.0,0.1495727]
[1762170256095,0.46798804,107820.0,107810.0,0.1495727]
[1762170256289,0.93512214,107820.0,107810.0,0.1367427]
[1762170257393,0.93312214,107820.0,107810.0,0.04397]
[1762170257597,0.93312214,107820.0,107810.0,0.04497]
[1762170257898,0.93312214,107820.0,107810.0,0.04597]
[1762170258392,0.93512214,107820.0,107810.0,0.04397]
[1762170259994,0.93512214,107820.0,107810.0,0.1367425]
[1762170261886,0.93512214,107820.0,107800.0,0.09339966]
[1762170261887,0.05848,107810.0,107800.0,0.09339966]
[1762170262097,0.61309064,107810.0,107800.0,0.1367512]
[1762170262599,0.25229064,107810.0,107800.0,0.1367512]
[1762170262802,0.57245064,107810.0,107800.0,0.1367512]
[1762170263789,0.93325064,107810.0,107800.0,0.1367512]
[1762170263995,0.93325064,107810.0,107800.0,0.1377512]
[1762170264301,0.93325064,107810.0,107800.0,0.02253]
[1762170264597,1.03428868,107810.0,107800.0,0.002]
[1762170265699,1.03628868,107810.0,107800.0,0.001]
[1762170265903,0.1449798,107790.0,107780.0,0.18530186]
[1762170266196,0.60681784,107790.0,107780.0,0.19840186]
[1762170267794,0.92693784,107790.0,107780.0,0.19940186]
[1762170268204,0.92693784,107790.0,107780.0,0.20040186]
[1762170268589,0.92693784,107790.0,107780.0,0.10760966]
[1762170268794,0.92693784,107790.0,107780.0,0.20040806]
[1762170269703,0.56613784,107790.0,107780.0,0.20040806]
[1762170271402,0.56613784,107790.0,107780.0,0.18730806]
[1762170271706,0.56613784,107790.0,107780.0,0.1378784]
[1762170271907,0.56613784,107790.0,107780.0,0.4986784]
[1762170272507,0.47334804,107790.0,107780.0,0.56077806]
[1762170273007,0.57214774,107790.0,107780.0,0.56077806]
[1762170273509,0.55935774,107790.0,107780.0,0.56077806]
[1762170274112,0.46656804,107790.0,107780.0,0.56077806]
[1762170277099,0.32004,107800.0,107790.0,0.1154997]
[1762170277316,0.55803914,107800.0,107790.0,0.1514497]
[1762170277812,0.14521804,107800.0,107790.0,0.1514497]
[1762170278105,0.46525804,107800.0,107790.0,0.1514497]
[1762170278308,0.46725804,107800.0,107790.0,0.20087936]
[1762170278506,0.36622,107800.0,107790.0,0.56167936]
[1762170278708,0.46725804,107800.0,107790.0,0.56167936]
[1762170278910,0.14721804,107800.0,107790.0,0.56167936]
[1762170279711,0.14721804,107800.0,107790.0,0.56367936]
[1762170280411,0.14521804,107800.0,107790.0,0.56467936]
[1762170281213,0.14521804,107800.0,107790.0,0.56567936]
[1762170281410,0.14521804,107800.0,107790.0,0.56767936]
[1762170281811,0.23799884,107800.0,107790.0,0.56767936]
[1762170282713,0.14521804,107800.0,107790.0,0.56767936]
[1762170284609,0.23799884,107800.0,107790.0,0.56767936]
[1762170284814,0.23799884,107800.0,107790.0,0.20687936]
[1762170285008,0.50601804,107800.0,107790.0,0.1574497]
[1762170285214,0.14521804,107800.0,107790.0,0.1574497]
[1762170285415,0.23799884,107800.0,107790.0,0.20687936]
[1762170285619,0.14521804,107800.0,107790.0,0.20687936]
[1762170285818,0.14521804,107800.0,107790.0,0.20187936]
[1762170286021,0.14521804,107800.0,107790.0,0.20287936]
[1762170289410,0.14521804,107800.0,107790.0,0.56367936]
[1762170289717,0.12337804,107800.0,107790.0,0.56367936]
[1762170289916,0.14437804,107800.0,107790.0,0.56367936]
[1762170290418,0.14437804,107800.0,107790.0,0.88363936]
[1762170292521,0.14437804,107800.0,107790.0,0.8342097]
[1762170295213,0.10103804,107800.0,107790.0,0.8342097]
[1762170295618,0.14562804,107800.0,107790.0,0.8342097]
[1762170296815,0.14562804,107800.0,107790.0,0.88352475]
[1762170298416,0.14562804,107800.0,107790.0,0.90036848]
[1762170298615,0.10103804,107800.0,107790.0,0.90036848]
[1762170299016,0.12374804,107800.0,107790.0,0.90036848]
[1762170299314,0.14562804,107800.0,107790.0,0.90036848]
[1762170302018,0.14562804,107800.0,107790.0,0.58040848]
[1762170302225,0.15727804,107800.0,107790.0,0.8341697]
[1762170302526,0.16994833,107800.0,107790.0,0.5142497]
[1762170303119,0.15829833,107800.0,107790.0,0.5142497]
[1762170306318,0.15829833,107800.0,107790.0,0.58040848]
[1762170306526,0.04459,107800.0,107790.0,0.58040848]
[1762170306721,0.05816,107820.0,107810.0,0.1473415]
[1762170306925,0.13641833,107820.0,107810.0,0.55754844]
[1762170307116,0.05395793,107830.0,107820.0,0.1488712]
[1762170307329,0.16766626,107830.0,107820.0,0.87897046]
[1762170307926,0.16766626,107830.0,107820.0,0.8295912]
[1762170308128,0.16766626,107830.0,107820.0,0.87897697]
[1762170309627,0.05395793,107830.0,107820.0,0.87897697]
[1762170309826,0.16766626,107830.0,107820.0,0.87897697]
[1762170310028,0.16966626,107830.0,107820.0,0.87897697]
[1762170310629,0.11570833,107830.0,107820.0,0.87897697]
[1762170311230,0.002,107830.0,107820.0,0.87897697]
[1762170311524,0.16029833,107830.0,107820.0,0.87897697]
[1762170312628,0.13841833,107830.0,107820.0,0.87897697]
[1762170312930,0.11570833,107830.0,107820.0,0.87897697]
[1762170314426,0.0392,107850.0,107840.0,0.01144]
[1762170314618,0.0392,107850.0,107840.0,0.7849055]
[1762170314619,0.06108,107850.0,107840.0,0.7849055]
[1762170314927,0.17478833,107850.0,107840.0,0.83429127]
[1762170316022,0.06108,107850.0,107840.0,0.83429127]
[1762170316217,0.06808,107850.0,107840.0,0.83429127]
[1762170316423,0.03271,107850.0,107840.0,0.83429127]
[1762170316624,0.18178833,107850.0,107840.0,0.83429127]
[1762170318225,0.18178833,107850.0,107840.0,0.7849055]
[1762170318533,0.18178833,107850.0,107840.0,1.1457055]
[1762170319231,0.18178833,107850.0,107840.0,0.8257855]
[1762170319232,0.29549666,107850.0,107840.0,0.8257855]
[1762170319526,0.38823326,107850.0,107840.0,0.8257852]
[1762170319730,0.38823326,107850.0,107830.0,0.4649869]
[1762170319731,0.05808,107840.0,107830.0,0.4649869]
[1762170319932,0.17178833,107840.0,107830.0,0.4649869]
[1762170320935,0.17578833,107840.0,107830.0,0.4649869]
[1762170324231,0.26853333,107840.0,107830.0,0.4649869]
[1762170324430,0.17578833,107840.0,107830.0,0.4649869]
[1762170326727,0.17178833,107840.0,107830.0,0.4669869]
[1762170327125,0.26453333,107840.0,107830.0,0.1061869]
[1762170327330,0.26453333,107840.0,107830.0,0.1071869]
[1762170327923,0.26453333,107840.0,107830.0,0.01444]
[1762170328128,0.94549333,107840.0,107830.0,0.003]
[1762170328329,0.94549333,107840.0,107830.0,0.002]
[1762170328932,0.94549333,107840.0,107830.0,0.0947536]
[1762170329140,0.94549333,107840.0,107830.0,0.0927536]
[1762170329440,0.37924,107840.0,107830.0,0.1041936]
[1762170329843,0.49294833,107840.0,107830.0,0.1041936]
[1762170330434,0.17278833,107840.0,107830.0,0.1041936]
[1762170330642,0.17278833,107840.0,107830.0,0.4649936]
[1762170331035,0.17278833,107840.0,107830.0,0.4659936]
[1762170332439,0.17178833,107840.0,107830.0,0.4659936]
[1762170332744,0.17178833,107840.0,107830.0,0.4679936]
[1762170333345,0.26453333,107840.0,107830.0,0.4679936]
[1762170334345,0.17178833,107840.0,107830.0,0.4679936]
[1762170335043,0.17178833,107840.0,107830.0,0.51737937]
[1762170335736,0.05808,107840.0,107830.0,0.51737937]
[1762170335932,0.17178833,107840.0,107830.0,0.51737937]
[1762170337244,0.26453333,107840.0,107830.0,0.51737937]
[1762170337743,0.26453333,107840.0,107830.0,0.15657937]
[1762170338439,0.28615114,107840.0,107830.0,0.0957536]
[1762170338947,0.19340614,107840.0,107830.0,0.1071936]
[1762170339146,0.17178833,107840.0,107830.0,0.1071936]
[1762170339446,0.17278833,107840.0,107830.0,0.1051936]
[1762170339945,0.17278833,107840.0,107830.0,0.4649936]
[1762170340144,0.17178833,107840.0,107830.0,0.4649936]
[1762170340341,0.17178833,107840.0,107830.0,0.4669936]
[1762170340644,0.17178833,107840.0,107830.0,0.4679936]
[1762170342548,0.17178833,107840.0,107830.0,0.51737937]
[1762170344865,0.17178833,107840.0,107830.0,0.83753937]
[1762170348353,0.17178833,107840.0,107830.0,0.1071936]
[1762170348553,0.26453373,107840.0,107830.0,0.14516516]
[1762170348754,0.62533373,107840.0,107830.0,0.14516516]
[1762170349157,0.62533373,107840.0,107830.0,0.15660516]
[1762170349351,0.26453373,107840.0,107830.0,0.15660516]
[1762170349560,0.17178833,107840.0,107830.0,0.15560516]
[1762170349854,0.17378833,107840.0,107830.0,0.15360516]
[1762170350958,0.17378833,107840.0,107830.0,0.15460516]
[1762170351258,0.17178833,107840.0,107830.0,0.15560516]
[1762170351759,0.26453373,107840.0,107830.0,0.15560516]
[1762170352556,0.1508254,107840.0,107830.0,0.15460516]
[1762170352761,0.17178833,107840.0,107830.0,0.15460516]
[1762170353259,0.06008,107840.0,107830.0,0.15360516]
[1762170353464,0.17378833,107840.0,107830.0,0.15360516]
[1762170353762,0.17547833,107840.0,107830.0,0.62811349]
[1762170353953,0.002,107840.0,107830.0,0.53687278]
[1762170354147,0.002,107840.0,107830.0,0.65058111]
[1762170354356,0.06166,107850.0,107840.0,0.1041854]
[1762170354554,0.17536833,107850.0,107840.0,0.85084605]
[1762170355454,0.17536833,107850.0,107840.0,0.7849854]
[1762170356360,0.28907666,107850.0,107840.0,0.7859854]
[1762170356662,0.28907666,107850.0,107840.0,0.01344]
[1762170356954,0.28907666,107850.0,107840.0,0.1061853]
[1762170357158,0.28907666,107850.0,107840.0,0.15554217]
[1762170357663,0.28907666,107850.0,107840.0,0.05135687]
[1762170357852,0.38181346,107850.0,107840.0,0.05135687]
[1762170358458,0.28907666,107850.0,107840.0,0.14410227]
[1762170358656,0.28907666,107850.0,107840.0,0.14982227]
[1762170358855,0.38181346,107850.0,107840.0,0.05707687]
[1762170359160,0.7642518,107850.0,107840.0,0.001]
[1762170359564,0.05774,107840.0,107830.0,0.50862697]
[1762170359760,0.49144833,107840.0,107830.0,0.50862697]
[1762170361161,0.85224833,107840.0,107830.0,0.15354697]
[1762170361662,0.94499383,107840.0,107830.0,0.15354697]
[1762170362356,0.93229325,107840.0,107830.0,0.15354697]
[1762170362555,0.93229325,107840.0,107830.0,0.04935687]
[1762170362859,0.1504944,107830.0,107820.0,0.04935687]
[1762170363061,0.61230215,107830.0,107820.0,0.04935687]
[1762170363258,0.61230215,107830.0,107820.0,0.092763]
[1762170363859,0.150503,107820.0,107810.0,0.51436277]
[1762170364066,0.57155075,107820.0,107810.0,0.51436277]
[1762170364273,0.57155075,107820.0,107810.0,0.50864277]
[1762170364868,0.57155075,107820.0,107810.0,0.51436277]
[1762170365765,0.57155075,107820.0,107810.0,0.15356277]
[1762170365964,0.57155075,107820.0,107810.0,0.15956277]
[1762170366162,0.37778,107820.0,107810.0,0.15956277]
[1762170366357,0.47878775,107820.0,107810.0,0.52036277]
[1762170367765,0.47878775,107820.0,107810.0,0.15956277]
[1762170367967,0.47878775,107820.0,107810.0,0.52036277]
[1762170368365,0.47874775,107820.0,107810.0,0.52036277]
[1762170369073,0.15874775,107820.0,107810.0,0.52036277]
[1762170369268,0.47874775,107820.0,107810.0,0.52036277]
[1762170369468,0.15874775,107820.0,107810.0,0.52036277]
[1762170369771,0.47870775,107820.0,107810.0,0.52036277]
[1762170369964,0.15874775,107820.0,107810.0,0.52036277]
[1762170370271,0.57147105,107820.0,107810.0,0.52036277]
[1762170370473,0.47870775,107820.0,107810.0,0.52036277]
[1762170370670,0.25151105,107820.0,107810.0,0.52036277]
[1762170370873,0.57147105,107820.0,107810.0,0.15956277]
[1762170371171,0.93227105,107820.0,107810.0,0.05535687]
[1762170371372,0.93227105,107820.0,107810.0,0.06107687]
[1762170371572,0.93227105,107820.0,107810.0,0.06679687]
[1762170371768,0.57147105,107820.0,107810.0,0.15956887]
[1762170372068,0.93227105,107820.0,107810.0,0.15956887]
[1762170372273,0.93227105,107820.0,107810.0,0.06679687]
[1762170372458,0.93227105,107820.0,107810.0,0.05535687]
[1762170372659,0.93227105,107820.0,107810.0,0.006]
[1762170372871,0.93227105,107820.0,107800.0,0.01435687]
[1762170372872,0.150512,107810.0,107800.0,0.01435687]
[1762170373068,0.05774,107790.0,107780.0,0.1508578]
[1762170373269,0.47898775,107790.0,107780.0,0.5116578]
[1762170373570,0.11454775,107800.0,107790.0,0.0927892]
[1762170373571,0.01354,107800.0,107790.0,0.0927892]
[1762170373872,0.47902775,107800.0,107790.0,0.1508492]
[1762170374062,0.93260825,107800.0,107790.0,0.04416]
[1762170374263,0.93260825,107800.0,107790.0,0.1369492]
[1762170374264,0.83982775,107800.0,107790.0,0.1369492]
[1762170375576,0.84916868,107800.0,107790.0,0.1369492]
[1762170376363,0.84916868,107800.0,107790.0,0.1446492]
[1762170376566,0.16808868,107800.0,107790.0,0.1369492]
[1762170376768,0.48936868,107800.0,107790.0,0.1369492]
[1762170376974,0.85016868,107800.0,107790.0,0.1369492]
[1762170377876,0.84916868,107800.0,107790.0,0.1369492]
[1762170378370,0.94194928,107800.0,107790.0,0.04416]
[1762170378875,0.94294928,107800.0,107790.0,0.04416]
[1762170380074,0.94294928,107800.0,107790.0,0.1369492]
[1762170380676,0.74916093,107800.0,107790.0,0.1369492]
[1762170380868,0.94294928,107800.0,107790.0,0.1369492]
[1762170381266,0.85016868,107800.0,107790.0,0.1369492]
[1762170381873,0.85012868,107800.0,107790.0,0.1369492]
[1762170383174,0.85012868,107800.0,107790.0,0.1446492]
[1762170383768,0.74912093,107800.0,107790.0,0.1446492]
[1762170383971,0.85012868,107800.0,107790.0,0.1446492]
[1762170385671,0.85004868,107800.0,107790.0,0.1446492]
[1762170386371,0.94282928,107800.0,107780.0,0.7737919]
[1762170386581,0.16139775,107790.0,107780.0,0.8178619]
[1762170386974,0.16139775,107790.0,107780.0,0.8315919]
[1762170387487,0.16139775,107790.0,107780.0,0.8325919]
[1762170387678,0.0464,107790.0,107780.0,0.8325919]
[1762170388685,0.14740775,107790.0,107780.0,0.8345919]
[1762170389571,0.14740775,107790.0,107780.0,0.5143919]
[1762170390881,0.0464,107790.0,107780.0,0.5143919]
[1762170391087,0.14740775,107790.0,107780.0,0.5143919]
[1762170392979,0.14740775,107790.0,107780.0,0.56374719]
[1762170393180,0.06004,107790.0,107780.0,0.56374719]
[1762170393388,0.16104775,107790.0,107780.0,0.55001719]
[1762170393790,0.16104775,107790.0,107780.0,0.18921719]
[1762170393980,0.25383695,107790.0,107780.0,0.18921719]
[1762170394289,0.16104775,107790.0,107780.0,0.18921719]
[1762170395881,0.16104775,107790.0,107780.0,0.55001719]
[1762170396683,0.16104775,107790.0,107780.0,0.18921719]
[1762170397290,0.16104775,107790.0,107780.0,0.0957978]
[1762170397483,0.63635718,107790.0,107780.0,0.003]
[1762170397689,0.61463695,107790.0,107780.0,0.003]